Workbook

Sheet Vinayak Portfolio
A1: Sr.No | B1: SCRIP | C1: BUY PRICE | D1: MARKET PRICE | E1: QUANTITY | F1: GAIN/LOSS (%) | H1: Buy Value | I1: Allocation | K1: Market Price | L1: Allocation | N1: Diff
A2: 1 | B2: ADANI PORTS & SEZ | C2: 226.31 | D2: 389.25 | E2: 70 | F2: 72 | H2: =+C2*E2 -> 15841.7 | I2: =+H2/$H$31 -> 0.02757148328 | K2: =+D2*E2 -> 27247.5 | L2: =+K2/$K$31 -> 0.03325405125 | N2: =+L2-I2 -> 0.005682567971
A3: 2 | B3: ADVANCED ENZYME TECHNOLOGIES LTD | C3: 327.33 | D3: 289.55 | E3: 45 | F3: -11.5 | H3: =+C3*E3 -> 14729.85 | I3: =+H3/$H$31 -> 0.02563637823 | K3: =+D3*E3 -> 13029.75 | L3: =+K3/$K$31 -> 0.01590208182 | N3: =+L3-I3 -> -0.009734296412
A4: 3 | B4: ALKEM LABORATORIES | C4: 1050 | D4: 1756.8 | E4: 14 | F4: 67.3 | H4: 14700 | I4: 0.02558442618 | K4: =+D4*E4 -> 24595.2 | L4: 0.0300170673 | N4: 0.004432641122
A5: 4 | B5: AUROBINDO PHARMA | C5: 656.28 | D5: 743.6 | E5: 46 | F5: 13.3 | H5: 30188.88 | I5: 0.05254184842 | K5: 34205.6 | L5: 0.0417460235 | N5: -0.01079582492
A6: 5 | B6: AVANTI FEEDS | C6: 1676.28 | D6: 1861.8 | E6: 18 | F6: 11.1 | H6: 30173.04 | I6: 0.0525142799 | K6: 33512.4 | L6: 0.04090001164 | N6: -0.01161426826
A7: 6 | B7: BAJAJ ELECTRICALS | C7: 205.39 | D7: 340 | E7: 90 | F7: 65.5 | H7: 18485.1 | I7: 0.03217215485 | K7: 30600 | L7: 0.03734559017 | N7: 0.005173435318
A8: 7 | B8: BERGER PAINTS | C8: 251.5 | D8: 243.45 | E8: 20 | F8: -3.2 | H8: 5030 | I8: 0.00875439889 | K8: 4869 | L8: 0.005942342436 | N8: -0.002812056453
A9: 8 | B9: BRITANNIA | C9: 2825.3 | D9: 4205 | E9: 2 | F9: 48.8 | H9: 5650.6 | I9: 0.009834514188 | K9: 8410 | L9: 0.01026393508 | N9: 0.0004294208887
A10: 9 | B10: CANFIN HOMES | C10: 2902.01 | D10: 2775 | E10: 7 | F10: -4.4 | H10: 20314.07 | I10: 0.0353553622 | K10: 19425 | L10: 0.02370712709 | N10: -0.0116482351
A11: 10 | B11: DILIP BUILDCON LTD | C11: 355.8 | D11: 629.4 | E11: 55 | F11: 76.9 | H11: 19569 | I11: 0.03405861469 | K11: 34617 | L11: 0.04224811422 | N11: 0.008189499529
A12: 11 | B12: EDELWEISS FINANCIAL | C12: 227 | D12: 243.9 | E12: 40 | F12: 7.4 | H12: 9080 | I12: 0.01580316937 | K12: 9756 | L12: 0.01190665287 | N12: -0.003896516501
A13: 12 | B13: HDFC | C13: 1386.54 | D13: 1752.9 | E13: 17 | F13: 26.4 | H13: 23571.18 | I13: 0.04102415746 | K13: 29799.3 | L13: 0.03636838056 | N13: -0.004655776896
A14: 13 | B14: HEALTHCARE GLOBAL ENTER. | C14: 269.95 | D14: 270.35 | E14: 75 | F14: 0.2 | H14: 20246.25 | I14: 0.03523732575 | K14: 20276.25 | L14: 0.02474603015 | N14: -0.01049129559
A15: 14 | B15: ICICI PRUDENTIAL LIFE INSURANCE | C15: 334 | D15: 429.05 | E15: 77 | F15: 28.5 | H15: 25718 | I15: 0.04476056275 | K15: 33036.85 | L15: 0.04031962943 | N15: -0.004440933318
A16: 15 | B16: J.KUMAR INFRA | C16: 173.75 | D16: 197.2 | E16: 180 | F16: 13.5 | H16: 31275 | I16: 0.05443217202 | K16: 35496 | L16: 0.0433208846 | N16: -0.01111128742
A17: 16 | B17: KARNATAKA BANK | C17: 132.99 | D17: 150.25 | E17: 260 | F17: 13 | H17: 34577.4 | I17: 0.06017979168 | K17: 39065 | L17: 0.04767664968 | N17: -0.01250314201
A18: 17 | B18: KITEX GARMENTS | C18: 265.9 | D18: 234.2 | E18: 20 | F18: -11.9 | H18: 5318 | I18: 0.00925564479 | K18: 4684 | L18: 0.005716560273 | N18: -0.003539084517
A19: 18 | B19: L&T FINANCE HOLDINGS | C19: 56.38 | D19: 195.55 | E19: 951 | F19: 246.9 | H19: 53617.38 | I19: 0.09331768031 | K19: 185968.05 | L19: 0.2269636137 | N19: 0.1336459334
A20: 19 | B20: MOTHERSON SUMI | C20: 199.82 | D20: 308.35 | E20: 117 | F20: 54.3 | H20: 23378.94 | I20: 0.04068957582 | K20: 36076.95 | L20: 0.04402990161 | N20: 0.003340325793
A21: 20 | B21: PETRONET LNG | C21: 223.7 | D21: 227.8 | E21: 100 | F21: 1.8 | H21: 22370 | I21: 0.03893357916 | K21: 22780 | L21: 0.02780171713 | N21: -0.01113186203
A22: 21 | B22: POWER GRID | C22: 208.2 | D22: 214.85 | E22: 100 | F22: 3.2 | H22: 20820 | I22: 0.03623590157 | K22: 21485 | L22: 0.02622124199 | N22: -0.01001465958
A23: 22 | B23: RELAXO FOOTWEARS | C23: 422 | D23: 502.9 | E23: 50 | F23: 19.2 | H23: 21100 | I23: 0.03672322397 | K23: 25145 | L23: 0.03068806748 | N23: -0.006035156491
A24: 23 | B24: SYNGENE INTERNATIONAL | C24: 431.56 | D24: 448.2 | E24: 55 | F24: 3.9 | H24: 23735.8 | I24: 0.04131066822 | K24: 24651 | L24: 0.03008516808 | N24: -0.01122550014
A25: 24 | B25: THYROCARE TECHNOLOGIES | C25: 584.65 | D25: 687.5 | E25: 20 | F25: 17.6 | H25: 11693 | I25: 0.02035093165 | K25: 13750 | L25: 0.0167811067 | N25: -0.003569824958
A26: 25 | B26: TRENT LTD | C26: 272.5 | D26: 299.45 | E26: 75 | F26: 9.9 | H26: 20437.5 | I26: 0.03557018436 | K26: 22458.75 | L26: 0.02740964945 | N26: -0.008160534902
A27: 26 | B27: V GUARD IND. | C27: 186.12 | D27: 185.05 | E27: 105 | F27: -0.6 | H27: 19542.6 | I27: 0.03401266715 | K27: 19430.25 | L27: 0.02371353443 | N27: -0.01029913272
A28: 27 | B28: VOLTAS | C28: 231 | D28: 526.9 | E28: 10 | F28: 128.1 | H28: 2310 | I28: 0.004020409828 | K28: 5269 | L28: 0.006430520086 | N28: 0.002410110258
A29: 28 | B29: VRL LOGISTICS | C29: 294 | D29: 333.3 | E29: 50 | F29: 13.4 | H29: 14700 | I29: 0.02558442618 | K29: 16665 | L29: 0.02033870131 | N29: -0.005245724864
A30: 29 | B30: WELSPUN INDIA | C30: 54.65 | D30: 76.9 | E30: 300 | F30: 40.7 | H30: 16395 | I30: 0.02853446716 | K30: 23070 | L30: 0.02815564592 | N30: -0.0003788212322
H31: =SUM(H2:H30) -> 574568.29 | K31: =SUM(K2:K30) -> 819373.85
I35: Net Gain | K35: =+K31-H31 -> 244805.56
I36: Profit % | K36: =+K35/H31 -> 0.4260686924
B37: Note : around 2 lakh rs portfolio created when Feb 2016 market crashed and reamining portfolio added afterwards
